[Event "Chinese Chess League 2019"]
[Site "Shen Yang"]
[Date "2019.11.23"]
[Round "18.4"]
[White "Shen, Yang"]
[Black "Ning, Kaiyu"]
[Result "0-1"]
[ECO "D00"]
[WhiteElo "2410"]
[BlackElo "2330"]
[Annotator "ChessBase"]
[PlyCount "170"]
[EventDate "2019.04.09"]
[EventType "team-tourn"]
[EventCountry "CHN"]
[SourceTitle "playchess.com"]
[Source "ChessBase"]
[SourceQuality "1"]
[TimeControl "5400+30"]

1. d4 {[%emt 0:00:00]} d5 {[%emt 0:00:00]} 2. Bf4 {[%emt 0:00:00]} c5 {[%emt 0:00:14]} 3. e3 {[%emt 0:00:14]} Nc6 {[%emt 0:00:11]} 4. c3 {[%emt 0:00:16]} Nf6 {[%emt 0:00:21]} 5. Nd2 {[%emt 0:00:56]} Bf5 {[%emt 0:01:27]} 6. Qb3 {[%emt 0:07:12]} Qc8 {[%emt 0:00:39]} 7. dxc5 {[%emt 0:02:35]} e6 {[%emt 0:17:57]} 8. Ngf3 {[%emt 0:12:16]} Bxc5 {[%emt 0:00:09]} 9. Nd4 {[%emt 0:05:54]} Bg6 {[%emt 0:00:19]} 10. Bb5 {[%emt 0:01:14]} O-O {[%emt 0:06:28]} 11. Bxc6 {[%emt 0:05:08]} bxc6 {[%emt 0:00:07]} 12. Qa4 {[%emt 0:00:07]} Bxd4 {[%emt 0:21:11]} 13. cxd4 {[%emt 0:00:15]} Bd3 {[%emt 0:01:11]} 14. Rc1 {[%emt 0:02:01]} Bb5 {[%emt 0:00:47]} 15. Qd1 {[%emt 0:01:24]} a5 {[%emt 0:05:32]} 16. a4 {[%emt 0:02:42]} Ba6 {[%emt 0:00:02]} 17. f3 {[%emt 0:00:20]} Nd7 {[%emt 0:07:29]} 18. Qc2 {[%emt 0:07:08]} Bb7 {[%emt 0:01:37]} 19. O-O {[%emt 0:01:11]} f6 {[%emt 0:00:36]} 20. Bd6 {[%emt 0:00:20]} Re8 {[%emt 0:00:29]} 21. f4 {[%emt 0:04:05]} f5 {[%emt 0:00:53]} 22. Be5 {[%emt 0:01:33]} Qd8 {[%emt 0:04:15]} 23. Qc3 {[%emt 0:04:11]} Nb6 {[%emt 0:01:19]} 24. b3 {[%emt 0:02:03]} Nd7 {[%emt 0:00:36]} 25. Rc2 {[%emt 0:02:54]} Rc8 {[%emt 0:00:48]} 26. b4 {[%emt 0:05:12]} Ba6 {[%emt 0:06:23]} 27. Rfc1 {[%emt 0:01:02]} Nxe5 {[%emt 0:00:38]} 28. dxe5 {[%emt 0:02:45]} g5 {[%emt 0:04:26]} 29. Qd4 {[%emt 0:01:59]} gxf4 {[%emt 0:02:41]} 30. exf4 {[%emt 0:00:01]} axb4 {[%emt 0:04:29]} 31. Qxb4 {[%emt 0:03:14]} Qc7 {[%emt 0:06:03]} 32. Qd4 {[%emt 0:02:56]} Re7 {[%emt 0:01:47]} 33. Rc3 {[%emt 0:01:03]} Rg7 {[%emt 0:00:05]} 34. Qc5 {[%emt 0:01:12]} Qf7 {[%emt 0:00:37]} 35. Qb6 {[%emt 0:01:16]} Bb7 {[%emt 0:00:11]} 36. Rg3 {[%emt 0:01:33]} Rxg3 {[%emt 0:00:07]} 37. hxg3 {[%emt 0:00:02]} Qg7 {[%emt 0:01:29]} 38. Nf3 {[%emt 0:03:46]} Qe7 {[%emt 0:00:20]} 39. Rc5 {[%emt 0:02:09]} Ra8 {[%emt 0:00:01]} 40. a5 {[%emt 0:00:21]} Ra6 {[%emt 0:00:56]} 41. Qb4 {[%emt 0:00:02]} h6 {[%emt 0:00:10]} 42. Nd4 {[%emt 0:00:08]} Kf7 {[%emt 0:00:01]} 43. Kf2 {[%emt 0:00:34]} Ba8 {[%emt 0:00:41]} 44. Qc3 {[%emt 0:00:19]} Qb7 {[%emt 0:00:10]} 45. Nc2 {[%emt 0:02:13]} Qc7 {[%emt 0:01:15]} 46. Kg1 {[%emt 0:01:09]} h5 {[%emt 0:00:54]} 47. Nd4 {[%emt 0:00:13]} Ke7 {[%emt 0:01:00]} 48. Qa3 {[%emt 0:01:09]} Kd7 {[%emt 0:00:01]} 49. Nb3 {[%emt 0:02:21]} Ra7 {[%emt 0:00:53]} 50. Rc1 {[%emt 0:01:16]} Ke8 {[%emt 0:00:01]} 51. Ra1 {[%emt 0:00:53]} Bb7 {[%emt 0:00:42]} 52. Nc5 {[%emt 0:00:55]} Bc8 {[%emt 0:00:00]} 53. Qf3 {[%emt 0:00:50]} Qf7 {[%emt 0:00:37]} 54. Kf2 {[%emt 0:01:17]} Kd8 {[%emt 0:00:08]} 55. Qb3 {[%emt 0:01:13]} Qc7 {[%emt 0:00:02]} 56. Qb4 {[%emt 0:00:12]} Ke8 {[%emt 0:00:07]} 57. Ra4 {[%emt 0:00:45]} Ra8 {[%emt 0:00:01]} 58. Qb6 {[%emt 0:00:30]} Kd8 {[%emt 0:00:17]} 59. Qb4 {[%emt 0:01:09]} Ke8 {[%emt 0:00:03]} 60. Qb6 {[%emt 0:04:13]} Kd8 {[%emt 0:00:01]} 61. Ke3 {[%emt 0:00:14]} Rb8 {[%emt 0:00:07]} 62. Qxc7+ {[%emt 0:00:12]} Kxc7 {[%emt 0:00:01]} 63. a6 {[%emt 0:00:18]} Ra8 {[%emt 0:00:21]} 64. Kd4 {[%emt 0:00:07]} Kb6 {[%emt 0:00:17]} 65. Ra1 {[%emt 0:00:31]} Bxa6 {[%emt 0:01:55]} 66. Nxe6 {[%emt 0:00:13]} Rg8 {[%emt 0:01:41]} 67. Nc5 {[%emt 0:00:57]} Bc8 {[%emt 0:00:18]} 68. Ra3 {[%emt 0:01:58]} Rg6 {[%emt 0:00:01]} 69. Re3 {[%emt 0:00:41]} Rg8 {[%emt 0:01:12]} 70. e6 {[%emt 0:00:18]} Rd8 {[%emt 0:00:33]} 71. Re1 {[%emt 0:01:01]} Kc7 {[%emt 0:01:04]} 72. Ke5 {[%emt 0:00:41]} d4 {[%emt 0:00:01]} 73. e7 {[%emt 0:00:13]} Re8 {[%emt 0:00:29]} 74. Kf6 {[%emt 0:00:30]} Kd6 {[%emt 0:00:12]} 75. Kf7 {[%emt 0:01:18]} Rxe7+ {[%emt 0:00:15]} 76. Rxe7 {[%emt 0:00:07]} Kxc5 {[%emt 0:00:02]} 77. Rc7 {[%emt 0:00:38]} Ba6 {[%emt 0:00:03]} 78. Kf6 {[%emt 0:00:05]} Bd3 {[%emt 0:00:34]} 79. Ke5 {[%emt 0:00:10]} Be4 {[%emt 0:00:09]} 80. Rh7 {[%emt 0:00:25]} d3 {[%emt 0:00:02]} 81. Rxh5 {[%emt 0:01:52]} d2 {[%emt 0:00:01]} 82. Rh1 {[%emt 0:00:02]} Bc2 {[%emt 0:00:02]} 83. g4 {[%emt 0:00:20]} fxg4 {[%emt 0:00:03]} 84. f5 {[%emt 0:00:09]} d1=Q {[%emt 0:00:04]} 85. Rxd1 {[%emt 0:00:11]} Bxd1 {[%emt 0:00:03] Kd4+} 0-1

[Event "Chinese Chess League 2019"]
[Site "Shen Yang"]
[Date "2019.11.23"]
[Round "18.9"]
[White "Li, Yunshan"]
[Black "Dzagnidze, Nana"]
[Result "1/2-1/2"]
[ECO "A90"]
[WhiteElo "2287"]
[BlackElo "2502"]
[Annotator "ChessBase"]
[PlyCount "149"]
[EventDate "2019.04.09"]
[EventType "team-tourn"]
[EventCountry "CHN"]
[SourceTitle "playchess.com"]
[Source "ChessBase"]
[SourceQuality "1"]
[TimeControl "5400+30"]

1. d4 {[%emt 0:00:00]} e6 {[%emt 0:00:00]} 2. c4 {[%emt 0:00:00]} f5 {[%emt 0:00:00]} 3. g3 {[%emt 0:01:05]} Nf6 {[%emt 0:00:00]} 4. Bg2 {[%emt 0:00:08]} Bb4+ {[%emt 0:00:00]} 5. Bd2 {[%emt 0:02:43]} Qe7 {[%emt 0:00:05]} 6. Nf3 {[%emt 0:00:57]} O-O {[%emt 0:01:16]} 7. O-O {[%emt 0:01:29]} Bxd2 {[%emt 0:00:06]} 8. Qxd2 {[%emt 0:03:36]} Ne4 {[%emt 0:03:20]} 9. Qd3 {[%emt 0:02:10]} d6 {[%emt 0:01:47]} 10. e3 {[%emt 0:13:09]} Nd7 {[%emt 0:03:09]} 11. Nc3 {[%emt 0:03:01]} Ndf6 {[%emt 0:16:11]} 12. Nd2 {[%emt 0:02:15]} Nxc3 {[%emt 0:00:39]} 13. Qxc3 {[%emt 0:00:44]} e5 {[%emt 0:00:41]} 14. c5 {[%emt 0:03:32]} e4 {[%emt 0:13:22]} 15. cxd6 {[%emt 0:01:49]} cxd6 {[%emt 0:00:07]} 16. Rfc1 {[%emt 0:00:55]} Be6 {[%emt 0:06:18]} 17. Qc7 {[%emt 0:05:35]} Qxc7 {[%emt 0:02:07]} 18. Rxc7 {[%emt 0:00:11]} Rfc8 {[%emt 0:00:06]} 19. Rac1 {[%emt 0:05:34]} Rxc7 {[%emt 0:16:18]} 20. Rxc7 {[%emt 0:00:01]} Rc8 {[%emt 0:00:06]} 21. Rxc8+ {[%emt 0:02:09]} Bxc8 {[%emt 0:00:03]} 22. f3 {[%emt 0:06:19]} d5 {[%emt 0:03:44]} 23. h3 {[%emt 0:03:09]} Kf8 {[%emt 0:02:12]} 24. f4 {[%emt 0:03:00]} Ke7 {[%emt 0:00:28]} 25. Kf2 {[%emt 0:00:16]} Bd7 {[%emt 0:01:27]} 26. Bf1 {[%emt 0:00:58]} h6 {[%emt 0:00:10]} 27. Be2 {[%emt 0:00:42]} Kd6 {[%emt 0:01:01]} 28. Ke1 {[%emt 0:00:45]} Ba4 {[%emt 0:00:27]} 29. b3 {[%emt 0:05:17]} Be8 {[%emt 0:00:27]} 30. Nf1 {[%emt 0:05:52]} Kc6 {[%emt 0:01:54]} 31. Kd2 {[%emt 0:06:01]} Bd7 {[%emt 0:01:40]} 32. Kc3 {[%emt 0:00:26]} g6 {[%emt 0:00:11]} 33. Kb4 {[%emt 0:01:58]} Kb6 {[%emt 0:00:18]} 34. a4 {[%emt 0:01:46]} Kc7 {[%emt 0:00:05]} 35. Nd2 {[%emt 0:00:48]} Kd6 {[%emt 0:03:23]} 36. Kc3 {[%emt 0:01:01]} g5 {[%emt 0:00:56]} 37. Nf1 {[%emt 0:01:27]} Kc7 {[%emt 0:02:10]} 38. Kb4 {[%emt 0:01:28]} Kd6 {[%emt 0:00:27]} 39. Kc3 {[%emt 0:00:26]} Be8 {[%emt 0:00:12]} 40. Kb4 {[%emt 0:01:37]} Kc7 {[%emt 0:03:47]} 41. Bd1 {[%emt 0:01:57]} Kb6 {[%emt 0:01:32]} 42. a5+ {[%emt 0:01:38]} Kc6 {[%emt 0:00:06]} 43. Be2 {[%emt 0:00:39]} Kd6 {[%emt 0:00:01]} 44. Bd1 {[%emt 0:00:34]} Ng8 {[%emt 0:01:42]} 45. Be2 {[%emt 0:00:56]} Ne7 {[%emt 0:00:30]} 46. Kc3 {[%emt 0:00:55]} a6 {[%emt 0:01:57]} 47. b4 {[%emt 0:01:36]} Ng8 {[%emt 0:00:07]} 48. g4 {[%emt 0:04:23]} Bd7 {[%emt 0:00:25]} 49. Nh2 {[%emt 0:02:33]} gxf4 {[%emt 0:03:38]} 50. exf4 {[%emt 0:00:07]} Ne7 {[%emt 0:00:04]} 51. Kd2 {[%emt 0:00:31]} Nc6 {[%emt 0:00:16]} 52. Kc3 {[%emt 0:00:14]} Ne7 {[%emt 0:01:23]} 53. Kd2 {[%emt 0:00:17]} Ke6 {[%emt 0:05:47]} 54. Nf1 {[%emt 0:00:32]} Kf6 {[%emt 0:01:09]} 55. Ne3 {[%emt 0:01:39]} Bc6 {[%emt 0:00:14]} 56. Nd1 {[%emt 0:00:32]} Nc8 {[%emt 0:02:08]} 57. Nc3 {[%emt 0:00:36]} Nd6 {[%emt 0:01:14]} 58. Ke3 {[%emt 0:00:39]} fxg4 {[%emt 0:00:13]} 59. hxg4 {[%emt 0:01:36]} h5 {[%emt 0:00:01]} 60. Kf2 {[%emt 0:00:52]} hxg4 {[%emt 0:00:54]} 61. Bxg4 {[%emt 0:00:07]} Nc4 {[%emt 0:00:39]} 62. Nd1 {[%emt 0:01:10]} Na3 {[%emt 0:01:24]} 63. Ne3 {[%emt 0:00:20]} Nb5 {[%emt 0:00:06]} 64. Nc2 {[%emt 0:00:19]} Be8 {[%emt 0:00:37]} 65. Ke3 {[%emt 0:01:34]} Bf7 {[%emt 0:01:15]} 66. Kd2 {[%emt 0:01:02]} Be6 {[%emt 0:00:23]} 67. Be2 {[%emt 0:00:13]} Nc7 {[%emt 0:03:38]} 68. Ne3 {[%emt 0:00:23]} Bd7 {[%emt 0:00:01]} 69. Bd1 {[%emt 0:00:32]} Ke7 {[%emt 0:00:04]} 70. Bb3 {[%emt 0:00:48]} Kd6 {[%emt 0:00:01]} 71. f5 {[%emt 0:00:30]} Bc6 {[%emt 0:00:07]} 72. Ng4 {[%emt 0:00:56]} Bd7 {[%emt 0:01:15]} 73. Ne3 {[%emt 0:00:15]} Bb5 {[%emt 0:01:09]} 74. Ng4 {[%emt 0:01:11]} Bd7 {[%emt 0:00:26]} 75. Ne3 {[%emt 0:12:23] Ke5 Ng4+} 1/2-1/2

[Event "Chinese Chess League 2019"]
[Site "Shen Yang"]
[Date "2019.11.23"]
[Round "18.10"]
[White "Lagno, Kateryna"]
[Black "Li, Xueyi"]
[Result "1/2-1/2"]
[ECO "B15"]
[WhiteElo "2549"]
[BlackElo "2270"]
[Annotator "ChessBase"]
[PlyCount "86"]
[EventDate "2019.04.09"]
[EventType "team-tourn"]
[EventCountry "CHN"]
[SourceTitle "playchess.com"]
[Source "ChessBase"]
[SourceQuality "1"]
[TimeControl "5400+30"]

1. e4 {[%emt 0:00:00]} c6 {[%emt 0:00:00]} 2. d4 {[%emt 0:00:00]} d5 {[%emt 0:00:00]} 3. Nd2 {[%emt 0:00:00]} dxe4 {[%emt 0:00:30]} 4. Nxe4 {[%emt 0:00:00]} Nf6 {[%emt 0:00:03]} 5. Nxf6+ {[%emt 0:00:08]} exf6 {[%emt 0:00:06]} 6. c3 {[%emt 0:00:12]} Bd6 {[%emt 0:00:30]} 7. Bd3 {[%emt 0:00:06]} O-O {[%emt 0:00:18]} 8. Qc2 {[%emt 0:00:07]} Re8+ {[%emt 0:00:43]} 9. Ne2 {[%emt 0:00:06]} h5 {[%emt 0:00:35]} 10. O-O {[%emt 0:00:12]} h4 {[%emt 0:02:43]} 11. h3 {[%emt 0:00:08]} Nd7 {[%emt 0:00:14]} 12. Be3 {[%emt 0:01:29]} Nf8 {[%emt 0:01:15]} 13. c4 {[%emt 0:00:56]} Bc7 {[%emt 0:03:04]} 14. Rfe1 {[%emt 0:01:15]} Qd6 {[%emt 0:06:28]} 15. Nf4 {[%emt 0:01:26]} Qd8 {[%emt 0:08:10]} 16. Rad1 {[%emt 0:10:03]} Bd7 {[%emt 0:06:17]} 17. d5 {[%emt 0:06:22]} Bxf4 {[%emt 0:05:35]} 18. Bxf4 {[%emt 0:00:12]} Rxe1+ {[%emt 0:00:06]} 19. Rxe1 {[%emt 0:00:04]} cxd5 {[%emt 0:00:13]} 20. cxd5 {[%emt 0:00:11]} Qa5 {[%emt 0:00:15]} 21. Qd2 {[%emt 0:22:15]} Qxa2 {[%emt 0:04:36]} 22. Bd6 {[%emt 0:01:04]} Qb3 {[%emt 0:08:13]} 23. Bb4 {[%emt 0:21:29]} f5 {[%emt 0:17:03]} 24. Bb1 {[%emt 0:10:35]} Ng6 {[%emt 0:05:51]} 25. Qd4 {[%emt 0:07:35]} Qa4 {[%emt 0:01:04]} 26. Qc5 {[%emt 0:00:53]} a5 {[%emt 0:10:26]} 27. Bc3 {[%emt 0:00:07]} Qf4 {[%emt 0:00:29]} 28. d6 {[%emt 0:09:09]} Qg5 {[%emt 0:01:11]} 29. Be4 {[%emt 0:00:20]} Nf4 {[%emt 0:02:38]} 30. Bxb7 {[%emt 0:01:05]} Rc8 {[%emt 0:06:00]} 31. Qe3 {[%emt 0:01:07]} Rb8 {[%emt 0:03:24]} 32. Bf3 {[%emt 0:02:54]} Nxh3+ {[%emt 0:03:58]} 33. Kh2 {[%emt 0:00:18]} Qxe3 {[%emt 0:00:36]} 34. Rxe3 {[%emt 0:00:04]} Ng5 {[%emt 0:00:17]} 35. Re7 {[%emt 0:01:50]} Nxf3+ {[%emt 0:02:47]} 36. gxf3 {[%emt 0:00:01]} Rb7 {[%emt 0:01:04]} 37. Bxa5 {[%emt 0:00:07]} g5 {[%emt 0:00:11]} 38. b4 {[%emt 0:01:30]} g4 {[%emt 0:00:37]} 39. fxg4 {[%emt 0:00:04]} fxg4 {[%emt 0:00:04]} 40. Rxd7 {[%emt 0:02:10]} Rxd7 {[%emt 0:00:29]} 41. Bc7 {[%emt 0:00:01]} Kf8 {[%emt 0:00:10]} 42. b5 {[%emt 0:00:01]} Ke8 {[%emt 0:00:10]} 43. b6 {[%emt 0:00:08]} Rxc7 {[%emt 0:00:07]} 1/2-1/2

[Event "Chinese Chess League 2019"]
[Site "Shen Yang"]
[Date "2019.11.23"]
[Round "18.11"]
[White "Nie, Xinyang"]
[Black "Zvjaginsev, Vadim"]
[Result "0-1"]
[ECO "D55"]
[WhiteElo "2351"]
[BlackElo "2626"]
[Annotator "ChessBase"]
[PlyCount "116"]
[EventDate "2019.04.09"]
[EventType "team-tourn"]
[EventCountry "CHN"]
[SourceTitle "playchess.com"]
[Source "ChessBase"]
[SourceQuality "1"]
[TimeControl "5400+30"]

1. d4 {[%emt 0:00:00]} d5 {[%emt 0:00:02]} 2. c4 {[%emt 0:00:00]} e6 {[%emt 0:00:07]} 3. Nc3 {[%emt 0:00:00]} Nf6 {[%emt 0:00:10]} 4. Bg5 {[%emt 0:00:01]} Be7 {[%emt 0:00:19]} 5. e3 {[%emt 0:00:19]} O-O {[%emt 0:00:13]} 6. Rc1 {[%emt 0:01:29]} h6 {[%emt 0:01:07]} 7. Bxf6 {[%emt 0:00:06]} Bxf6 {[%emt 0:00:04]} 8. Nf3 {[%emt 0:00:09]} a6 {[%emt 0:00:07]} 9. Bd3 {[%emt 0:07:45]} dxc4 {[%emt 0:01:55]} 10. Bxc4 {[%emt 0:00:04]} Nd7 {[%emt 0:00:30]} 11. O-O {[%emt 0:07:40]} b5 {[%emt 0:04:05]} 12. Be2 {[%emt 0:02:31]} Bb7 {[%emt 0:00:44]} 13. b4 {[%emt 0:06:14]} e5 {[%emt 0:00:33]} 14. d5 {[%emt 0:30:17]} Nb6 {[%emt 0:02:13]} 15. e4 {[%emt 0:01:32]} c6 {[%emt 0:02:31]} 16. dxc6 {[%emt 0:02:08]} Bxc6 {[%emt 0:00:07]} 17. Qb3 {[%emt 0:01:08]} Qe7 {[%emt 0:05:13]} 18. Qb1 {[%emt 0:07:49]} Qb7 {[%emt 0:06:58]} 19. Nd2 {[%emt 0:05:01]} Bg5 {[%emt 0:03:17]} 20. Rcd1 {[%emt 0:00:05]} Na4 {[%emt 0:04:06]} 21. Nxa4 {[%emt 0:03:26]} bxa4 {[%emt 0:00:32]} 22. Bd3 {[%emt 0:01:03]} Rfb8 {[%emt 0:06:01]} 23. Nc4 {[%emt 0:13:41]} Qxb4 {[%emt 0:00:24]} 24. Qxb4 {[%emt 0:00:32]} Rxb4 {[%emt 0:00:06]} 25. Nxe5 {[%emt 0:00:02]} Bxe4 {[%emt 0:01:44]} 26. Bc4 {[%emt 0:00:03]} Bf6 {[%emt 0:11:55]} 27. Rd4 {[%emt 0:04:33]} Bg6 {[%emt 0:00:59]} 28. f4 {[%emt 0:01:09]} Rab8 {[%emt 0:04:34]} 29. Rfd1 {[%emt 0:00:51]} Rb1 {[%emt 0:06:12]} 30. R4d2 {[%emt 0:01:37]} Bxe5 {[%emt 0:03:18]} 31. fxe5 {[%emt 0:00:03]} a5 {[%emt 0:00:31]} 32. Rxb1 {[%emt 0:00:41]} Rxb1+ {[%emt 0:00:07]} 33. Kf2 {[%emt 0:00:03]} Rb4 {[%emt 0:05:45]} 34. Rd8+ {[%emt 0:03:26]} Kh7 {[%emt 0:00:06]} 35. Rd4 {[%emt 0:00:28]} Bf5 {[%emt 0:06:33]} 36. Ke3 {[%emt 0:01:25]} Be6 {[%emt 0:00:26]} 37. Bxe6 {[%emt 0:00:32]} fxe6 {[%emt 0:00:04]} 38. Rd6 {[%emt 0:00:27]} Rb2 {[%emt 0:00:59]} 39. Ra6 {[%emt 0:00:37]} Rxg2 {[%emt 0:00:25]} 40. h4 {[%emt 0:00:11]} Rxa2 {[%emt 0:01:01]} 41. Rxa5 {[%emt 0:00:29]} Kg6 {[%emt 0:01:28]} 42. Ra7 {[%emt 0:00:35]} a3 {[%emt 0:01:57]} 43. Kf4 {[%emt 0:00:24]} Ra1 {[%emt 0:01:15]} 44. Kg3 {[%emt 0:00:26]} Kh5 {[%emt 0:01:59]} 45. Ra4 {[%emt 0:00:22]} a2 {[%emt 0:01:24]} 46. Kg2 {[%emt 0:00:03]} g5 {[%emt 0:03:15]} 47. hxg5 {[%emt 0:00:09]} Kxg5 {[%emt 0:00:04]} 48. Ra5 {[%emt 0:00:14]} Kf5 {[%emt 0:00:05]} 49. Kh2 {[%emt 0:00:04]} h5 {[%emt 0:00:04]} 50. Kg2 {[%emt 0:00:09]} h4 {[%emt 0:00:06]} 51. Kh2 {[%emt 0:00:19]} h3 {[%emt 0:00:06]} 52. Ra8 {[%emt 0:00:13]} Kxe5 {[%emt 0:00:06]} 53. Ra5+ {[%emt 0:00:07]} Kf6 {[%emt 0:00:18]} 54. Ra6 {[%emt 0:00:03]} Kf5 {[%emt 0:00:10]} 55. Ra5+ {[%emt 0:00:06]} e5 {[%emt 0:00:07]} 56. Ra8 {[%emt 0:00:16]} e4 {[%emt 0:00:11]} 57. Rf8+ {[%emt 0:00:05]} Kg6 {[%emt 0:00:14]} 58. Rf2 {[%emt 0:00:41]} Rh1+ {[%emt 0:00:17]} 0-1

[Event "Chinese Chess League 2019"]
[Site "Shen Yang"]
[Date "2019.11.23"]
[Round "18.19"]
[White "Wang, Yu A."]
[Black "Tan, Zhongyi"]
[Result "1-0"]
[ECO "B90"]
[WhiteElo "2275"]
[BlackElo "2504"]
[Annotator "ChessBase"]
[PlyCount "75"]
[EventDate "2019.04.09"]
[EventType "team-tourn"]
[EventCountry "CHN"]
[SourceTitle "playchess.com"]
[Source "ChessBase"]
[SourceQuality "1"]
[TimeControl "5400+30"]

1. e4 {[%emt 0:00:00]} c5 {[%emt 0:00:00]} 2. Nf3 {[%emt 0:00:00]} d6 {[%emt 0:00:10]} 3. d4 {[%emt 0:00:00]} cxd4 {[%emt 0:00:08]} 4. Nxd4 {[%emt 0:00:00]} Nf6 {[%emt 0:00:08]} 5. Nc3 {[%emt 0:00:00]} a6 {[%emt 0:00:07]} 6. Bd3 {[%emt 0:00:00]} Nc6 {[%emt 0:04:48]} 7. Nxc6 {[%emt 0:03:06]} bxc6 {[%emt 0:00:22]} 8. O-O {[%emt 0:00:25]} g6 {[%emt 0:00:11]} 9. Qe2 {[%emt 0:08:12]} Bg7 {[%emt 0:00:18]} 10. f4 {[%emt 0:00:29]} O-O {[%emt 0:00:25]} 11. f5 {[%emt 0:02:19]} Nd7 {[%emt 0:01:13]} 12. Kh1 {[%emt 0:03:19]} Ne5 {[%emt 0:00:39]} 13. Bg5 {[%emt 0:00:40]} Rb8 {[%emt 0:02:08]} 14. Rab1 {[%emt 0:12:15]} a5 {[%emt 0:00:09]} 15. Na4 {[%emt 0:02:41]} Re8 {[%emt 0:05:44]} 16. b3 {[%emt 0:02:37]} Qc7 {[%emt 0:00:47]} 17. c4 {[%emt 0:06:35]} Ba6 {[%emt 0:08:43]} 18. Rbc1 {[%emt 0:03:25]} Kh8 {[%emt 0:12:11]} 19. Bb1 {[%emt 0:03:04]} gxf5 {[%emt 0:08:43]} 20. exf5 {[%emt 0:07:21]} Bf6 {[%emt 0:00:21]} 21. Bf4 {[%emt 0:07:45]} Rg8 {[%emt 0:06:14]} 22. Qh5 {[%emt 0:05:07]} Rg7 {[%emt 0:00:57]} 23. Bh6 {[%emt 0:01:07]} Rg4 {[%emt 0:00:28]} 24. Bf4 {[%emt 0:05:17]} Rbg8 {[%emt 0:09:29]} 25. Bxe5 {[%emt 0:06:58]} dxe5 {[%emt 0:00:18]} 26. Nc5 {[%emt 0:00:02]} Qa7 {[%emt 0:14:22]} 27. Nxa6 {[%emt 0:01:51]} Rxg2 {[%emt 0:00:49]} 28. Be4 {[%emt 0:02:23]} R2g4 {[%emt 0:02:58]} 29. Bf3 {[%emt 0:06:54]} Rh4 {[%emt 0:15:47]} 30. Qxf7 {[%emt 0:00:02]} Qd4 {[%emt 0:00:45]} 31. Rc2 {[%emt 0:02:59]} e4 {[%emt 0:04:44]} 32. Rg2 {[%emt 0:00:43]} Rxg2 {[%emt 0:00:34]} 33. Bxg2 {[%emt 0:00:01]} Rg4 {[%emt 0:00:06]} 34. Qe8+ {[%emt 0:01:03]} Kg7 {[%emt 0:00:25]} 35. Nc7 {[%emt 0:03:44]} Qd2 {[%emt 0:01:19]} 36. Bh3 {[%emt 0:00:20]} Qd3 {[%emt 0:00:45]} 37. Qh5 {[%emt 0:00:30]} Rg6 {[%emt 0:00:44]} 38. Ne6+ {[%emt 0:00:35]} 1-0

[Event "Chinese Chess League 2019"]
[Site "Shen Yang"]
[Date "2019.11.23"]
[Round "18.23"]
[White "Bai, Jinshi"]
[Black "Lin, Yi"]
[Result "1-0"]
[ECO "D80"]
[WhiteElo "2600"]
[BlackElo "2425"]
[Annotator "ChessBase"]
[PlyCount "95"]
[EventDate "2019.04.09"]
[EventType "team-tourn"]
[EventCountry "CHN"]
[SourceTitle "playchess.com"]
[Source "ChessBase"]
[SourceQuality "1"]
[TimeControl "5400+30"]

1. d4 {[%emt 0:00:00]} Nf6 {[%emt 0:00:00]} 2. c4 {[%emt 0:00:00]} g6 {[%emt 0:00:00]} 3. Nc3 {[%emt 0:00:11]} d5 {[%emt 0:00:01]} 4. Bg5 {[%emt 0:00:34]} Bg7 {[%emt 0:03:28]} 5. Bxf6 {[%emt 0:00:21]} Bxf6 {[%emt 0:00:06]} 6. cxd5 {[%emt 0:00:06]} c5 {[%emt 0:02:41]} 7. dxc5 {[%emt 0:00:16]} Nd7 {[%emt 0:00:51]} 8. e3 {[%emt 0:00:29]} O-O {[%emt 0:02:52]} 9. Bc4 {[%emt 0:00:48]} Nxc5 {[%emt 0:00:26]} 10. Nge2 {[%emt 0:03:28]} Qb6 {[%emt 0:04:28]} 11. Qd2 {[%emt 0:03:14]} Bf5 {[%emt 0:07:16]} 12. O-O {[%emt 0:11:31]} Rac8 {[%emt 0:07:02]} 13. Rac1 {[%emt 0:02:52]} Rfd8 {[%emt 0:06:07]} 14. b3 {[%emt 0:10:03]} a6 {[%emt 0:12:08]} 15. Rfd1 {[%emt 0:19:59]} Qd6 {[%emt 0:13:05]} 16. Ng3 {[%emt 0:11:50]} b5 {[%emt 0:02:54]} 17. Bf1 {[%emt 0:00:29]} b4 {[%emt 0:03:19]} 18. Nce2 {[%emt 0:02:08]} a5 {[%emt 0:23:44]} 19. Nxf5 {[%emt 0:02:15]} gxf5 {[%emt 0:00:01]} 20. Ng3 {[%emt 0:00:59]} Ne4 {[%emt 0:01:59]} 21. Nxe4 {[%emt 0:00:48]} fxe4 {[%emt 0:00:02]} 22. Rxc8 {[%emt 0:06:48]} Rxc8 {[%emt 0:00:03]} 23. Qe2 {[%emt 0:00:14]} Qd7 {[%emt 0:05:04]} 24. d6 {[%emt 0:01:15]} exd6 {[%emt 0:00:01]} 25. Rxd6 {[%emt 0:00:07]} Qxd6 {[%emt 0:00:03]} 26. Qg4+ {[%emt 0:00:04]} Bg7 {[%emt 0:00:05]} 27. Qxc8+ {[%emt 0:00:04]} Bf8 {[%emt 0:00:13]} 28. Qg4+ {[%emt 0:00:11]} Qg6 {[%emt 0:00:05]} 29. Qd7 {[%emt 0:00:55]} Kg7 {[%emt 0:05:03]} 30. Bc4 {[%emt 0:00:35]} Qf6 {[%emt 0:00:16]} 31. g3 {[%emt 0:01:14]} Be7 {[%emt 0:01:29]} 32. Bd5 {[%emt 0:06:47]} Qf3 {[%emt 0:00:29]} 33. Bc6 {[%emt 0:00:05]} Bg5 {[%emt 0:00:32]} 34. Qd4+ {[%emt 0:00:26]} Qf6 {[%emt 0:00:23]} 35. Qxf6+ {[%emt 0:00:34]} Bxf6 {[%emt 0:00:16]} 36. Bxe4 {[%emt 0:00:04]} h6 {[%emt 0:00:04]} 37. f4 {[%emt 0:01:57]} Bb2 {[%emt 0:00:28]} 38. Kf2 {[%emt 0:00:09]} Kf8 {[%emt 0:00:31]} 39. Kf3 {[%emt 0:01:19]} Bc1 {[%emt 0:00:15]} 40. Bd5 {[%emt 0:00:12]} Ke7 {[%emt 0:00:47]} 41. e4 {[%emt 0:00:57]} f6 {[%emt 0:00:11]} 42. Kg4 {[%emt 0:00:31]} Be3 {[%emt 0:00:31]} 43. Kf5 {[%emt 0:10:11]} Bg1 {[%emt 0:00:36]} 44. h3 {[%emt 0:00:04]} Bd4 {[%emt 0:00:50]} 45. g4 {[%emt 0:00:35]} Kd6 {[%emt 0:01:00]} 46. h4 {[%emt 0:00:46]} Be3 {[%emt 0:00:16]} 47. Kxf6 {[%emt 0:01:10]} Bxf4 {[%emt 0:00:04]} 48. g5 {[%emt 0:00:03] Kxd5} 1-0